bitfinex/quotes_BTCUSD_20251102
["timestamp","ask_amount","ask_price","bid_price","bid_amount"]
[1762124555327,0.1209256,110300.0,110290.0,0.00014496]
[1762124555561,0.21739802,110310.0,110290.0,0.76689586]
[1762124555776,0.03609,110310.0,110300.0,0.18132366]
[1762124555990,0.23245722,110310.0,110300.0,0.18132366]
[1762124556451,0.28490366,110330.0,110310.0,0.18130722]
[1762124556452,0.30869366,110330.0,110310.0,0.18130722]
[1762124556665,0.30869366,110330.0,110310.0,0.19732722]
[1762124556881,0.01506,110320.0,110310.0,0.19732722]
[1762124557806,0.19635079,110320.0,110300.0,0.77158064]
[1762124558017,0.20866722,110310.0,110300.0,0.35602]
[1762124558238,0.23245722,110310.0,110290.0,0.20135206]
[1762124558478,0.23245722,110310.0,110290.0,0.22395206]
[1762124559539,0.02736,110310.0,110300.0,0.19734366]
[1762124560394,0.01249,110320.0,110310.0,0.18130722]
[1762124560603,0.02755,110320.0,110310.0,0.19732722]
[1762124561051,0.01249,110330.0,110320.0,0.18129079]
[1762124561276,0.20882435,110330.0,110320.0,0.18129079]
[1762124561519,0.01506,110320.0,110310.0,0.18130722]
[1762124561732,0.01806,110320.0,110310.0,0.18130722]
[1762124561977,0.01806,110320.0,110310.0,0.19732722]
[1762124562625,0.01249,110330.0,110320.0,0.18129079]
[1762124562864,0.11857594,110340.0,110330.0,0.18127435]
[1762124563077,0.00022034,110340.0,110330.0,0.76475515]
[1762124563298,0.00022034,110340.0,110330.0,0.78735515]
[1762124563730,0.00022034,110340.0,110330.0,0.22876435]
[1762124564782,0.00622034,110340.0,110330.0,0.56876435]
[1762124565464,0.00622034,110340.0,110330.0,1.12735515]
[1762124565673,0.00022034,110340.0,110330.0,1.12735515]
[1762124566103,0.00022034,110340.0,110330.0,1.16353743]
[1762124566313,0.00022034,110340.0,110330.0,1.17284636]
[1762124566540,0.00022034,110340.0,110330.0,1.16353743]
[1762124566961,0.00022034,110340.0,110330.0,0.60494663]
[1762124567191,0.00022034,110340.0,110330.0,1.12735515]
[1762124567405,0.00022034,110340.0,110330.0,0.56876435]
[1762124567864,0.00022034,110340.0,110330.0,0.57376435]
[1762124568328,0.00022034,110340.0,110330.0,0.56876435]
[1762124568535,0.00022034,110340.0,110330.0,0.54616435]
[1762124568743,0.00322034,110340.0,110330.0,0.54616435]
[1762124569396,0.00322034,110340.0,110330.0,0.22897435]
[1762124569653,0.00322034,110340.0,110330.0,0.78756515]
[1762124570536,0.00022034,110340.0,110330.0,0.78756515]
[1762124572299,0.00322034,110340.0,110330.0,1.12756515]
[1762124572509,0.00322034,110340.0,110330.0,1.04994357]
[1762124572726,0.00322034,110340.0,110330.0,0.86866922]
[1762124572940,0.00322034,110340.0,110330.0,0.56897435]
[1762124573156,0.00322034,110340.0,110330.0,1.04994357]
[1762124573394,0.00022034,110340.0,110330.0,1.04994357]
[1762124574243,0.00022034,110340.0,110330.0,1.23412585]
[1762124575291,0.00022034,110340.0,110330.0,0.75315663]
[1762124575523,0.00022034,110340.0,110330.0,0.71697435]
[1762124575733,0.00022034,110340.0,110330.0,1.19794357]
[1762124576582,0.00022034,110340.0,110330.0,1.08612585]
[1762124577473,0.00322034,110340.0,110330.0,1.08612585]
[1762124577891,0.00022034,110340.0,110330.0,1.08612585]
[1762124578321,0.00022034,110340.0,110330.0,1.09112585]
[1762124578754,0.00022034,110340.0,110330.0,0.71494357]
[1762124579170,0.00022034,110340.0,110330.0,1.05494357]
[1762124579412,0.00022034,110340.0,110330.0,0.71494357]
[1762124579615,0.00022034,110340.0,110330.0,1.04994357]
[1762124580026,0.00622034,110340.0,110330.0,1.04994357]
[1762124581113,0.00622034,110340.0,110330.0,0.56897435]
[1762124581322,0.20289827,110340.0,110330.0,0.20616435]
[1762124581737,0.00622034,110340.0,110330.0,0.22897435]
[1762124582204,0.02164034,110340.0,110330.0,0.68713357]
[1762124582435,0.00622034,110340.0,110330.0,0.20616435]
[1762124582642,0.20289827,110340.0,110330.0,0.20616435]
[1762124582854,0.02164034,110340.0,110330.0,0.20616435]
[1762124583311,0.00622034,110340.0,110330.0,0.22897435]
[1762124583751,0.00622034,110340.0,110330.0,0.70994357]
[1762124584887,0.00622034,110340.0,110330.0,0.22897435]
[1762124585118,0.18747827,110340.0,110330.0,0.70994357]
[1762124585327,0.00622034,110340.0,110330.0,0.70994357]
[1762124585521,0.00622034,110340.0,110330.0,0.22897435]
[1762124586406,0.00622034,110340.0,110330.0,0.70994357]
[1762124586616,0.00622034,110340.0,110330.0,0.68713357]
[1762124586820,0.00622034,110340.0,110330.0,0.22897435]
[1762124587030,0.18127435,110330.0,110320.0,0.68009079]
[1762124587261,0.18129079,110320.0,110310.0,0.54117258]
[1762124587463,0.18129079,110320.0,110310.0,0.36711]
[1762124587464,0.01542,110320.0,110310.0,0.36711]
[1762124587672,0.19671079,110320.0,110310.0,0.20841722]
[1762124587881,0.19671079,110320.0,110300.0,0.21319984]
[1762124587882,0.22103079,110320.0,110300.0,0.21319984]
[1762124588088,0.22103079,110320.0,110300.0,0.21749984]
[1762124588089,0.01542,110310.0,110300.0,0.21749984]
[1762124588297,0.01542,110310.0,110300.0,0.55749984]
[1762124588519,0.23069062,110310.0,110300.0,0.55749984]
[1762124588728,0.02672,110310.0,110300.0,0.55749984]
[1762124588942,0.20561079,110320.0,110310.0,0.18130722]
[1762124589161,0.22103079,110320.0,110310.0,0.18130722]
[1762124589378,0.19671079,110320.0,110310.0,0.18130722]
[1762124589616,0.00714,110330.0,110320.0,0.18129079]
[1762124589815,0.27975676,110340.0,110320.0,0.19760079]
[1762124590025,0.30407676,110340.0,110320.0,0.19760079]
[1762124590231,0.19669435,110330.0,110320.0,0.01631]
[1762124590453,0.20799435,110330.0,110310.0,0.21318258]
[1762124590667,0.18129079,110320.0,110310.0,0.21318258]
[1762124591103,0.18129079,110320.0,110310.0,0.22949258]
[1762124591533,0.18130722,110310.0,110300.0,0.54118984]
[1762124591745,0.20163806,110330.0,110310.0,0.18130722]
[1762124591958,0.19671079,110320.0,110310.0,0.01631]
[1762124592182,0.19671079,110320.0,110310.0,0.19761722]
[1762124592417,0.27975676,110340.0,110320.0,0.19760079]
[1762124592656,0.05120824,110340.0,110330.0,0.18127435]
[1762124592884,0.02278034,110340.0,110330.0,0.20645435]
[1762124593119,0.20403827,110340.0,110330.0,0.20645435]
[1762124593340,0.02278034,110340.0,110330.0,0.20645435]
[1762124593563,0.00022034,110340.0,110330.0,0.6572449]
[1762124593786,0.00022034,110340.0,110330.0,0.9972449]
[1762124594031,0.00022034,110340.0,110330.0,0.56926435]
[1762124594262,0.00622034,110340.0,110330.0,0.56926435]
[1762124594764,0.00622034,110340.0,110330.0,0.9972449]
[1762124594988,0.22678551,110340.0,110330.0,0.02518]
[1762124595209,0.20412827,110340.0,110330.0,0.20645435]
[1762124595432,0.00622034,110340.0,110330.0,0.20645435]
[1762124595656,0.00022034,110340.0,110330.0,0.6589049]
[1762124596109,0.00122034,110340.0,110330.0,1.1469049]
[1762124596342,0.00122034,110340.0,110330.0,1.11716278]
[1762124597036,0.00022034,110340.0,110330.0,1.11716278]
[1762124597522,0.0002,110380.0,110370.0,0.18120866]
[1762124597745,0.0002,110380.0,110370.0,0.23182866]
[1762124597746,0.00034479,110380.0,110370.0,0.23182866]
[1762124598430,0.0012258,110380.0,110370.0,0.23182866]
[1762124598675,0.0012258,110380.0,110370.0,0.99980921]
[1762124600001,0.0072258,110380.0,110370.0,0.99980921]
[1762124600446,0.0012258,110380.0,110370.0,0.99980921]
[1762124600664,0.0022258,110380.0,110370.0,0.99980921]
[1762124601727,0.0022258,110380.0,110370.0,0.96625089]
[1762124605990,0.0022258,110380.0,110370.0,0.57182866]
[1762124606243,0.0022258,110380.0,110370.0,0.96625089]
[1762124606477,0.0022258,110380.0,110370.0,1.15043317]
[1762124606713,0.0002,110390.0,110380.0,0.95179675]
[1762124606939,0.00068228,110390.0,110380.0,0.99232675]
[1762124607168,0.00068228,110390.0,110380.0,1.14032675]
[1762124607614,0.00890069,110400.0,110390.0,0.21735811]
[1762124607826,0.00890069,110400.0,110390.0,1.39753257]
[1762124608291,0.00890069,110400.0,110390.0,1.54553257]
[1762124608512,0.00890069,110400.0,110390.0,1.55472045]
[1762124608978,0.0002,110430.0,110420.0,0.91554883]
[1762124609202,0.00034462,110430.0,110420.0,0.95607883]
[1762124609918,0.00034462,110430.0,110420.0,0.38053]
[1762124610177,0.18145482,110430.0,110420.0,0.38053]
[1762124610631,0.00034462,110430.0,110420.0,0.5616566]
[1762124610848,0.18145482,110430.0,110420.0,0.38053]
[1762124611073,0.19978482,110430.0,110420.0,0.01656]
[1762124611315,0.1811266,110420.0,110410.0,0.34887]
[1762124611561,0.2213266,110420.0,110410.0,0.00887]
[1762124611783,0.1974566,110420.0,110410.0,0.00887]
[1762124612010,0.2213266,110420.0,110410.0,0.00887]
[1762124612427,0.18114301,110410.0,110390.0,0.61036667]
[1762124612663,0.18114301,110410.0,110400.0,0.01656]
[1762124612870,0.18114301,110410.0,110400.0,0.19771942]
[1762124613080,0.18114301,110410.0,110400.0,0.22168942]
[1762124613491,0.18114301,110410.0,110400.0,0.01656]
[1762124613931,0.18114301,110410.0,110390.0,0.0108]
[1762124613932,0.18115942,110400.0,110390.0,0.0108]
[1762124614358,0.18115942,110400.0,110390.0,0.02736]
[1762124614573,0.01713,110410.0,110400.0,0.18115942]
[1762124614787,0.20960316,110410.0,110400.0,0.01656]
[1762124614996,0.21760316,110410.0,110400.0,0.01656]
[1762124615232,0.21760316,110410.0,110400.0,0.19771942]
[1762124615883,0.21760316,110410.0,110400.0,0.01656]
[1762124616324,0.24147316,110410.0,110390.0,0.21594583]
[1762124616584,0.21760316,110410.0,110400.0,0.19771942]
[1762124617002,0.03646,110410.0,110400.0,0.19771942]
[1762124617244,0.21760301,110410.0,110400.0,0.19771942]
[1762124617462,0.21760301,110410.0,110390.0,0.21594583]
[1762124617662,0.18115942,110400.0,110390.0,0.21594583]
[1762124618105,0.18115942,110400.0,110390.0,0.23250583]
[1762124618316,0.18115942,110400.0,110390.0,0.02736]
[1762124618532,0.19748942,110400.0,110380.0,0.19025183]
[1762124618748,0.21714301,110410.0,110390.0,0.20853583]
[1762124618962,0.21714301,110410.0,110400.0,0.18115942]
[1762124619415,0.00034462,110430.0,110410.0,0.18114301]
[1762124619662,0.00034462,110430.0,110420.0,0.2065566]
[1762124619949,0.00034462,110430.0,110420.0,0.5705266]
[1762124620859,0.00034462,110430.0,110420.0,0.5465566]
[1762124621352,0.20991482,110430.0,110420.0,0.36543]
[1762124621625,0.31786042,110430.0,110410.0,0.53001251]
[1762124621859,0.19558482,110430.0,110420.0,0.01656]
[1762124622073,0.1974566,110420.0,110410.0,0.00887]
[1762124622280,0.1974566,110420.0,110410.0,0.19001301]
[1762124622281,0.01633,110420.0,110410.0,0.19001301]
[1762124622488,0.1974566,110420.0,110410.0,0.20657301]
[1762124622705,0.1974566,110420.0,110400.0,0.21418478]
[1762124622938,0.1974566,110420.0,110400.0,0.55418478]
[1762124622939,0.18114301,110410.0,110400.0,0.55418478]
[1762124623164,0.18115942,110400.0,110390.0,0.0108]
[1762124623643,0.18115942,110400.0,110380.0,0.0108]
[1762124623644,0.18117583,110390.0,110380.0,0.0108]
[1762124623863,0.18117583,110390.0,110380.0,0.19199224]
[1762124624071,0.18117583,110390.0,110380.0,0.20855224]
[1762124624738,0.18917583,110390.0,110380.0,0.20855224]
[1762124624945,0.008,110390.0,110380.0,0.23286224]
[1762124626632,0.21479016,110410.0,110400.0,0.18115942]
[1762124626633,0.04408699,110410.0,110400.0,0.18115942]
[1762124626840,0.20573301,110410.0,110390.0,0.18116179]
[1762124627056,0.18115942,110400.0,110390.0,0.18116179]
[1762124627288,0.19773942,110400.0,110390.0,0.19645583]
[1762124627497,0.19773942,110400.0,110390.0,0.18117583]
[1762124627972,0.19773942,110400.0,110380.0,0.22536185]
[1762124628208,0.19775583,110390.0,110380.0,0.20105185]
[1762124628428,0.18117583,110390.0,110380.0,0.19199224]
[1762124628630,0.19775583,110390.0,110380.0,0.20727224]
[1762124629036,0.01658,110390.0,110380.0,0.20727224]
[1762124629258,0.00022019,110390.0,110380.0,0.20727224]
[1762124630087,0.18339602,110390.0,110380.0,0.20727224]
[1762124630293,0.18339602,110390.0,110380.0,0.02608]
[1762124630506,0.18339602,110390.0,110360.0,0.00887]
[1762124630507,0.18120866,110370.0,110360.0,0.00887]
[1762124630723,0.05071108,110370.0,110360.0,0.19057736]
[1762124630934,0.23191974,110370.0,110360.0,0.02463228]
[1762124631115,0.20926866,110370.0,110360.0,0.02463228]
[1762124631529,0.23385866,110370.0,110360.0,0.00048228]
[1762124631745,0.23885866,110370.0,110360.0,0.00048228]
[1762124631962,0.23881866,110370.0,110360.0,0.00048228]
[1762124632174,0.23881866,110370.0,110360.0,0.18170736]
[1762124632592,0.23881866,110370.0,110360.0,0.00048228]
[1762124632795,0.63324089,110370.0,110360.0,0.00048228]
[1762124633220,0.65274364,110370.0,110360.0,0.00048228]
[1762124634048,0.6869747,110370.0,110360.0,0.00048228]
[1762124634289,1.05954992,110370.0,110360.0,0.00048228]
[1762124634483,1.213033,110370.0,110360.0,0.00048228]
[1762124634690,1.23763355,110370.0,110360.0,0.00048228]
[1762124634895,1.32745256,110370.0,110360.0,0.00048228]
[1762124635107,1.32745256,110370.0,110360.0,1e-08]
[1762124635316,1.28862093,110370.0,110360.0,1e-08]
[1762124635550,1.37363483,110370.0,110360.0,1e-08]
[1762124635756,1.33605961,110370.0,110360.0,1e-08]
[1762124635972,1.36849178,110370.0,110360.0,1e-08]
[1762124636181,1.31966016,110370.0,110360.0,1e-08]
[1762124636384,1.32666016,110370.0,110360.0,1e-08]
[1762124637003,1.31966016,110370.0,110360.0,1e-08]
[1762124637206,1.34394457,110370.0,110360.0,1e-08]
[1762124637443,1.34694458,110370.0,110360.0,1e-08]
[1762124637646,1.35694457,110370.0,110360.0,1e-08]
[1762124638053,1.35690227,110370.0,110360.0,1e-08]
[1762124638245,1.34003977,110370.0,110360.0,1e-08]
[1762124639280,1.3076076,110370.0,110360.0,1e-08]
[1762124639512,1.34003977,110370.0,110360.0,1e-08]
[1762124641378,1.3076076,110370.0,110360.0,1e-08]
[1762124641808,1.33260801,110370.0,110360.0,1e-08]
[1762124642017,1.33734503,110370.0,110360.0,1e-08]
[1762124642222,1.35374448,110370.0,110360.0,1e-08]
[1762124642641,1.30491286,110370.0,110360.0,1e-08]
[1762124642854,1.35343097,110370.0,110360.0,1e-08]
[1762124643743,1.35341893,110370.0,110360.0,1e-08]
[1762124644169,1.38066147,110370.0,110360.0,1e-08]
[1762124644393,1.29084246,110370.0,110360.0,1e-08]
[1762124645010,1.32315832,110370.0,110360.0,1e-08]
[1762124645252,1.31315833,110370.0,110360.0,1e-08]
[1762124645902,1.26464022,110370.0,110360.0,1e-08]
[1762124646161,1.36445922,110370.0,110360.0,1e-08]
[1762124646391,1.37184864,110370.0,110360.0,1e-08]
[1762124646611,1.46748864,110370.0,110360.0,1e-08]
[1762124647750,1.50860387,110370.0,110360.0,1e-08]
[1762124648177,1.47628801,110370.0,110360.0,1e-08]
[1762124649070,1.46328801,110370.0,110360.0,1e-08]
[1762124649292,1.48128801,110370.0,110360.0,1e-08]
[1762124649522,1.735788,110370.0,110360.0,1e-08]
[1762124649752,1.75201223,110370.0,110360.0,1e-08]
[1762124650213,0.18132366,110300.0,110290.0,0.1927716]
[1762124650434,0.18132366,110300.0,110290.0,0.19291639]
[1762124650435,0.02488,110300.0,110290.0,0.19291639]
[1762124650662,0.19278801,110310.0,110300.0,0.18132119]
[1762124650895,0.01658,110300.0,110290.0,0.21899639]
[1762124651120,0.19790366,110300.0,110290.0,0.02858961]
[1762124651352,0.22249366,110300.0,110290.0,0.01330961]
[1762124651570,0.22249366,110300.0,110290.0,0.01550961]
[1762124652019,0.30456926,110300.0,110290.0,0.01550961]
[1762124652257,0.30456926,110300.0,110290.0,0.00250961]
[1762124652721,0.30456926,110300.0,110290.0,0.01050961]
[1762124652938,0.83556977,110300.0,110290.0,0.01050961]
[1762124654283,0.1232456,110300.0,110290.0,0.19184971]
[1762124654512,0.0903756,110320.0,110300.0,0.52132366]
[1762124654729,0.21225213,110320.0,110310.0,0.20742722]
[1762124654942,0.0083,110320.0,110310.0,0.19214722]
[1762124655152,0.02489,110320.0,110310.0,0.19214722]
[1762124655791,0.02489,110320.0,110310.0,0.20741722]
[1762124656025,0.02489,110320.0,110310.0,0.21441722]
[1762124656853,0.20618079,110320.0,110310.0,0.21441722]
[1762124657059,0.02489,110320.0,110310.0,0.21441722]
[1762124657482,0.0083,110320.0,110310.0,0.21441722]
[1762124657912,0.02489,110320.0,110310.0,0.21441722]
[1762124659016,0.01148,110330.0,110320.0,0.18129079]
[1762124659227,0.0083,110340.0,110330.0,0.52127435]
[1762124659446,0.0083,110340.0,110330.0,0.54541435]
[1762124659656,0.01221,110350.0,110340.0,0.18125793]
[1762124659909,0.30930704,110360.0,110350.0,0.1812415]
[1762124659910,0.13843507,110360.0,110350.0,0.1812415]
[1762124660139,0.21697344,110370.0,110360.0,0.18122508]
[1762124660140,0.01144,110370.0,110360.0,0.18122508]
[1762124660349,0.27472426,110370.0,110360.0,0.01527]
[1762124660564,0.27472426,110370.0,110360.0,0.19649508]
[1762124660565,0.11019296,110370.0,110360.0,0.19649508]
[1762124660780,8.736e-05,110370.0,110360.0,0.19649508]
[1762124660994,8.736e-05,110370.0,110360.0,0.21956508]
[1762124661222,0.19788602,110370.0,110360.0,0.01527]
[1762124661454,8.736e-05,110370.0,110360.0,0.19649508]
[1762124662082,8.736e-05,110370.0,110360.0,0.19949508]
[1762124662298,0.18129602,110370.0,110360.0,0.01827]
[1762124662520,0.18129602,110370.0,110360.0,0.19649508]
[1762124662749,0.18329602,110370.0,110360.0,0.19649508]
[1762124662985,0.18122508,110360.0,110330.0,0.22227806]
[1762124663220,0.19781508,110360.0,110330.0,0.73020857]
[1762124663447,0.22249508,110360.0,110340.0,0.18125729]
[1762124663718,0.19781508,110360.0,110340.0,0.18125729]
[1762124663952,0.19235645,110370.0,110350.0,0.2195815]
[1762124664189,0.02157272,110370.0,110360.0,0.18122508]
[1762124664403,8.736e-05,110370.0,110360.0,0.19730508]
[1762124664613,8.736e-05,110370.0,110360.0,0.01608]
[1762124664614,0.18129602,110370.0,110360.0,0.01608]
[1762124664827,0.18122508,110360.0,110350.0,0.54431134]
[1762124665037,0.18122508,110360.0,110350.0,0.34]
[1762124665241,0.18122508,110360.0,110350.0,0.5373215]
[1762124665859,0.18329641,110370.0,110350.0,0.5612915]
[1762124666065,0.18129641,110370.0,110350.0,0.5373215]
[1762124666289,0.20486641,110370.0,110350.0,0.5383215]
[1762124666500,0.20486641,110370.0,110360.0,0.18122508]
[1762124666912,0.22145641,110370.0,110350.0,0.5222415]
[1762124667294,0.18122508,110360.0,110350.0,0.5222415]
[1762124667497,0.18122508,110360.0,110350.0,0.5212415]
[1762124667702,0.18122508,110360.0,110350.0,0.5373215]
[1762124668434,0.18122508,110360.0,110330.0,0.73020857]
[1762124668435,0.28284736,110360.0,110330.0,0.00887]
[1762124668643,0.19334793,110340.0,110330.0,0.19014302]
[1762124668881,0.01209,110340.0,110330.0,0.19014302]
[1762124669131,0.01209,110350.0,110340.0,0.18125793]
[1762124669401,0.18122508,110360.0,110340.0,0.19733793]
[1762124669835,0.19028633,110360.0,110350.0,0.1812415]
[1762124670032,0.21392684,110370.0,110350.0,0.1973215]
[1762124670257,0.20981206,110370.0,110350.0,0.2212915]
[1762124670477,8.736e-05,110370.0,110360.0,0.19730508]
[1762124670950,8.736e-05,110370.0,110360.0,0.22127508]
[1762124671542,0.00208736,110370.0,110360.0,0.22127508]
[1762124671975,0.18129602,110370.0,110360.0,0.19730508]
[1762124672172,0.18122508,110360.0,110350.0,0.34]
[1762124672384,0.22138508,110360.0,110350.0,0.34]
[1762124672584,0.22138508,110360.0,110340.0,0.19032082]
[1762124672585,0.1812415,110350.0,110340.0,0.19032082]
[1762124672815,0.2097415,110350.0,110340.0,0.34]
[1762124673019,0.2097415,110350.0,110340.0,0.52125793]
[1762124673162,0.2097415,110350.0,110330.0,0.22317673]
[1762124673365,0.2097415,110350.0,110330.0,0.19014435]
[1762124673366,0.01659,110340.0,110330.0,0.19014435]
[1762124673576,0.2167215,110350.0,110330.0,0.53014435]
[1762124673786,0.01191,110350.0,110340.0,0.18125793]
[1762124673986,0.1931515,110350.0,110330.0,0.57019435]
[1762124674192,0.19784793,110340.0,110330.0,0.53014435]
[1762124674388,0.19784793,110340.0,110330.0,0.34887]
[1762124674589,0.2167215,110350.0,110330.0,0.55222435]
[1762124674773,0.1931515,110350.0,110340.0,0.18125793]
[1762124674983,0.01191,110350.0,110340.0,0.18125793]
[1762124675177,0.2097415,110350.0,110340.0,0.18125793]
[1762124675742,0.0285,110350.0,110340.0,0.18125793]
[1762124676111,0.01209,110360.0,110350.0,0.1812415]
[1762124676315,0.32754158,110370.0,110350.0,0.1971965]
[1762124676528,0.30809205,110370.0,110350.0,0.1971965]
[1762124677310,0.18122508,110360.0,110350.0,0.1971965]
[1762124677522,0.1812415,110350.0,110330.0,0.19920806]
[1762124677727,0.1812415,110350.0,110330.0,0.53920806]
[1762124677728,0.2214015,110350.0,110330.0,0.53920806]
[1762124678456,0.18125793,110340.0,110330.0,0.53920806]
[1762124678662,0.18125793,110340.0,110330.0,0.54220806]
[1762124678902,0.18125793,110340.0,110330.0,0.55828806]
[1762124679108,0.2048115,110350.0,110330.0,0.55828806]
[1762124679529,0.22050517,110340.0,110330.0,0.54220806]
[1762124679876,0.22050517,110340.0,110330.0,0.34]
[1762124679877,0.22141793,110340.0,110330.0,0.34]
[1762124679997,0.22141793,110340.0,110330.0,0.346]
[1762124680616,0.22141793,110340.0,110330.0,0.34]
[1762124680824,0.26989143,110340.0,110330.0,0.001]
[1762124681028,0.22141793,110340.0,110330.0,0.001]
[1762124681235,0.22141793,110340.0,110330.0,0.18127435]
[1762124681236,0.01659,110340.0,110330.0,0.18127435]
[1762124681440,0.22141856,110340.0,110320.0,0.52129037]
[1762124681642,0.0285,110330.0,110320.0,0.52129037]
[1762124681849,0.18129079,110320.0,110310.0,0.20121258]
[1762124682258,0.19788079,110320.0,110310.0,0.21729258]
[1762124682464,0.19788079,110320.0,110310.0,0.55729258]
[1762124682703,0.01659,110320.0,110310.0,0.55729258]
[1762124682902,8.729e-05,110320.0,110310.0,0.55729258]
[1762124684078,8.729e-05,110320.0,110310.0,0.55829258]
[1762124684486,8.729e-05,110320.0,110310.0,0.58226258]
[1762124684647,8.729e-05,110320.0,110310.0,1.11326309]
[1762124684851,8.729e-05,110320.0,110310.0,1.14944537]
[1762124687428,8.729e-05,110320.0,110310.0,1.29744537]
[1762124688302,8.729e-05,110320.0,110310.0,0.76644486]
[1762124688516,8.729e-05,110320.0,110310.0,1.29744537]
[1762124688950,8.729e-05,110320.0,110310.0,0.69722722]
[1762124689165,8.729e-05,110320.0,110310.0,0.72127722]
[1762124690950,8.729e-05,110320.0,110310.0,1.25227773]
[1762124691466,8.729e-05,110320.0,110310.0,0.72127722]
[1762124693156,8.729e-05,110320.0,110310.0,0.57327722]
[1762124694012,0.21965942,110320.0,110310.0,0.36792]
[1762124694233,0.19699808,110320.0,110310.0,0.35184]
[1762124694690,0.19699808,110320.0,110310.0,0.19314722]
[1762124695422,0.22177808,110320.0,110310.0,0.001]
[1762124695696,0.22177808,110320.0,110310.0,0.18230722]
[1762124695939,0.22177808,110320.0,110310.0,0.001]
[1762124696950,0.71840362,110320.0,110310.0,0.001]
[1762124697471,0.32339019,110320.0,110310.0,0.001]
[1762124697683,0.18132239,110310.0,110290.0,0.54352368]
[1762124697906,0.19694366,110300.0,110290.0,0.55932368]
[1762124698350,0.22172366,110300.0,110290.0,0.00236482]
[1762124699535,0.01562,110300.0,110290.0,0.18370492]
[1762124699752,0.22172366,110300.0,110290.0,0.18370492]
[1762124700434,0.22672366,110300.0,110290.0,0.18370492]
[1762124700681,0.02062,110300.0,110290.0,0.19950492]
[1762124700913,0.23481062,110310.0,110300.0,0.18132366]
[1762124701148,0.00606,110310.0,110300.0,0.3558]
[1762124701365,0.22776722,110310.0,110300.0,0.34]
[1762124701608,0.22776722,110310.0,110300.0,0.52132366]
[1762124701844,0.18132366,110300.0,110290.0,0.00236482]
[1762124702080,0.18132366,110300.0,110290.0,0.18470492]
[1762124702081,0.19694366,110300.0,110290.0,0.18470492]
[1762124702311,0.01562,110300.0,110290.0,0.18470492]
[1762124702542,0.01562,110300.0,110290.0,0.19950492]
[1762124703032,0.002,110310.0,110300.0,0.18132366]
[1762124703263,0.002,110310.0,110300.0,0.19712366]
[1762124703494,0.26951489,110320.0,110310.0,0.18130722]
[1762124703948,0.28513368,110320.0,110310.0,0.18130722]
[1762124704217,0.30991368,110320.0,110310.0,0.18130722]
[1762124704881,0.12862289,110320.0,110310.0,0.18130722]
[1762124705098,0.30991368,110320.0,110310.0,0.18130722]
[1762124705326,0.30991368,110320.0,110300.0,0.341]
[1762124705327,0.18130722,110310.0,110300.0,0.341]
[1762124705574,0.01562,110310.0,110300.0,0.53812366]
[1762124705784,0.02761,110310.0,110300.0,0.53712366]
[1762124706020,0.20891722,110310.0,110300.0,0.53712366]
[1762124706484,0.02761,110310.0,110300.0,0.53712366]
[1762124706977,0.002,110310.0,110300.0,0.95618709]
[1762124707446,0.002,110310.0,110300.0,1.10418709]
[1762124707663,0.002,110310.0,110300.0,1.14036937]
[1762124708109,8.729e-05,110320.0,110310.0,0.18130722]
[1762124708339,8.729e-05,110320.0,110310.0,0.62701065]
[1762124709498,8.729e-05,110320.0,110310.0,0.63001065]
[1762124711721,8.729e-05,110320.0,110310.0,0.66619293]
[1762124712174,8.729e-05,110320.0,110310.0,0.81419293]
[1762124717090,8.729e-05,110320.0,110310.0,0.38299722]
[1762124717535,0.19757808,110320.0,110310.0,0.19514722]
[1762124717754,0.22211808,110320.0,110310.0,0.003]
[1762124717973,0.31134728,110320.0,110310.0,0.003]
[1762124718425,0.31134728,110320.0,110300.0,0.18132366]
[1762124718426,0.18130722,110310.0,110300.0,0.18132366]
[1762124718647,0.02801,110310.0,110300.0,0.18132366]
[1762124718864,0.01181,110310.0,110300.0,0.19739366]
[1762124720171,0.20931722,110310.0,110290.0,0.21692176]
[1762124720386,0.00508729,110320.0,110310.0,0.52130722]
[1762124720605,0.02128729,110320.0,110310.0,0.54821722]
[1762124720824,8.729e-05,110320.0,110310.0,0.54821722]
[1762124721317,0.01628729,110320.0,110310.0,0.54821722]
[1762124721960,0.01628729,110320.0,110310.0,0.54921722]
[1762124723231,8.729e-05,110320.0,110310.0,0.54921722]
[1762124723646,8.729e-05,110320.0,110310.0,0.57336722]
[1762124724334,8.729e-05,110320.0,110310.0,0.54921722]
[1762124724770,8.729e-05,110320.0,110310.0,0.57319722]
[1762124724988,8.729e-05,110320.0,110310.0,0.96821065]
[1762124725852,8.729e-05,110320.0,110310.0,0.57319722]
[1762124726075,0.21909942,110320.0,110310.0,0.36791]
[1762124726318,0.01514729,110320.0,110310.0,0.54966722]
[1762124727414,8.729e-05,110320.0,110310.0,0.54966722]
[1762124727619,8.729e-05,110320.0,110310.0,0.57364722]
[1762124728898,8.729e-05,110320.0,110310.0,0.96866065]
[1762124731906,8.729e-05,110320.0,110310.0,1.15284293]
[1762124732118,8.729e-05,110320.0,110310.0,1.15184293]
[1762124732549,8.729e-05,110320.0,110310.0,1.16084293]
[1762124733196,8.729e-05,110320.0,110310.0,0.7658295]
[1762124733406,8.729e-05,110320.0,110310.0,1.16084293]
[1762124734015,8.729e-05,110320.0,110310.0,1.15184293]
[1762124736053,8.729e-05,110320.0,110310.0,1.15384293]
[1762124738380,8.729e-05,110320.0,110310.0,0.72264722]
[1762124738595,0.18137808,110320.0,110310.0,0.51736]
[1762124738809,0.01514729,110320.0,110310.0,0.55066722]
[1762124739039,0.21921808,110320.0,110310.0,0.19414722]
[1762124739240,0.21921808,110320.0,110310.0,0.52330722]
[1762124739466,0.21921808,110320.0,110310.0,0.52130722]
[1762124739685,0.18130722,110310.0,110300.0,0.18132366]
[1762124739904,0.01506,110310.0,110300.0,0.19784366]
[1762124740595,0.02286729,110320.0,110310.0,0.18130722]
[1762124740810,8.729e-05,110320.0,110310.0,0.22679794]
[1762124741015,8.729e-05,110320.0,110310.0,0.54866722]
[1762124742096,0.01514729,110320.0,110310.0,0.54866722]
[1762124742523,0.01814729,110320.0,110310.0,0.54866722]
[1762124743197,0.19943808,110320.0,110310.0,0.36736]
[1762124743418,0.22221808,110320.0,110310.0,0.52130722]
[1762124743632,0.22221808,110320.0,110300.0,0.18132366]
[1762124743848,0.0274,110310.0,110300.0,0.19784366]
[1762124744113,0.0274,110310.0,110300.0,0.53784366]
[1762124744346,0.01234,110310.0,110300.0,0.53784366]
[1762124744551,0.20715808,110320.0,110310.0,0.18130722]
[1762124744768,0.19943808,110320.0,110310.0,0.19782722]
[1762124744992,0.01514729,110320.0,110310.0,0.20866722]
[1762124745209,0.01814729,110320.0,110310.0,0.20866722]
[1762124745645,0.01514729,110320.0,110310.0,0.20866722]
[1762124745861,8.729e-05,110320.0,110310.0,0.96751065]
[1762124746071,0.00308729,110320.0,110310.0,0.96751065]
[1762124746708,8.729e-05,110320.0,110310.0,0.96751065]
[1762124747814,8.729e-05,110320.0,110310.0,1.11551065]
[1762124748020,8.729e-05,110320.0,110310.0,1.11851065]